[Event "Early-Titled-Tuesday-Blitz-October-10-2023"]
[Site "Chess.com"]
[Date "2023.10.10"]
[Round "4"]
[White "shimastream"]
[Black "djokovic74"]
[Result "1-0"]
[WhiteElo "2985"]
[BlackElo "2745"]
[TimeControl "180+1"]
[EndTime "8:38:01 PDT"]
[Termination "shimastream won by checkmate"]

1. d4 {[%clk 0:03:00.9]} 1... e6 {[%clk 0:02:58.4]} 2. g3 {[%clk 0:02:59.4]}
2... Nf6 {[%clk 0:02:58.2]} 3. Bg2 {[%clk 0:02:59.7]} 3... d5 {[%clk 0:02:58.6]}
4. Nf3 {[%clk 0:02:59.7]} 4... Be7 {[%clk 0:02:59]} 5. c4 {[%clk 0:03:00.1]}
5... O-O {[%clk 0:02:59.1]} 6. Nc3 {[%clk 0:03:00.3]} 6... c6 {[%clk 0:02:58.9]}
7. O-O {[%clk 0:02:58.5]} 7... a5 {[%clk 0:02:59]} 8. Nd2 {[%clk 0:02:54.3]}
8... b5 {[%clk 0:02:56.1]} 9. cxb5 {[%clk 0:02:53.5]} 9... cxb5 {[%clk
0:02:56.6]} 10. Nxb5 {[%clk 0:02:53.9]} 10... Qb6 {[%clk 0:02:48.1]} 11. Nc3
{[%clk 0:02:47.2]} 11... Nc6 {[%clk 0:02:35.5]} 12. Nf3 {[%clk 0:02:43.4]} 12...
Ba6 {[%clk 0:02:25]} 13. b3 {[%clk 0:02:42.2]} 13... Rac8 {[%clk 0:01:58.6]} 14.
Bb2 {[%clk 0:02:40.4]} 14... Rfd8 {[%clk 0:01:58.9]} 15. Rc1 {[%clk 0:02:34.7]}
15... Qa7 {[%clk 0:01:46.8]} 16. Re1 {[%clk 0:02:29.4]} 16... Ne4 {[%clk
0:01:45.1]} 17. a3 {[%clk 0:02:21.6]} 17... Qb7 {[%clk 0:01:10.2]} 18. e3 {[%clk
0:02:20.6]} 18... Rb8 {[%clk 0:01:05.6]} 19. Nxe4 {[%clk 0:02:19.6]} 19... dxe4
{[%clk 0:01:05.9]} 20. Nd2 {[%clk 0:02:20.3]} 20... f5 {[%clk 0:01:04.6]} 21.
Nxe4 {[%clk 0:02:17]} 21... fxe4 {[%clk 0:00:58.3]} 22. Bxe4 {[%clk 0:02:17.9]}
22... Qxb3 {[%clk 0:00:39.4]} 23. Rxc6 {[%clk 0:02:06.4]} 23... Qxb2 {[%clk
0:00:22.3]} 24. Rxa6 {[%clk 0:02:05.3]} 24... Qxa3 {[%clk 0:00:19.9]} 25. Qh5
{[%clk 0:02:03.1]} 25... g6 {[%clk 0:00:16.4]} 26. Bxg6 {[%clk 0:01:54.5]} 26...
hxg6 {[%clk 0:00:16.5]} 27. Qxg6+ {[%clk 0:01:55.4]} 27... Kf8 {[%clk
0:00:16.9]} 28. Qh6+ {[%clk 0:01:54]} 28... Ke8 {[%clk 0:00:14.4]} 29. Qh5+
{[%clk 0:01:39.4]} 29... Kf8 {[%clk 0:00:10.6]} 30. Rxa5 {[%clk 0:01:26.6]}
30... Qb4 {[%clk 0:00:05.9]} 31. Rea1 {[%clk 0:01:25]} 31... Rd5 {[%clk
0:00:06.1]} 32. Rxd5 {[%clk 0:01:23.6]} 32... exd5 {[%clk 0:00:06.7]} 33. Qxd5
{[%clk 0:01:24.3]} 33... Qb7 {[%clk 0:00:07]} 34. Qxb7 {[%clk 0:01:23.4]} 34...
Rxb7 {[%clk 0:00:07.7]} 35. Kg2 {[%clk 0:01:23.5]} 35... Rb2 {[%clk 0:00:07.5]}
36. h4 {[%clk 0:01:23.7]} 36... Kf7 {[%clk 0:00:06.6]} 37. Kf3 {[%clk
0:01:24.1]} 37... Bb4 {[%clk 0:00:06.1]} 38. h5 {[%clk 0:01:22.9]} 38... Kg7
{[%clk 0:00:06.1]} 39. g4 {[%clk 0:01:23]} 39... Be7 {[%clk 0:00:04.7]} 40. Kg3
{[%clk 0:01:21.8]} 40... Rb3 {[%clk 0:00:05.1]} 41. Ra6 {[%clk 0:01:20.6]} 41...
Rc3 {[%clk 0:00:03.1]} 42. Rg6+ {[%clk 0:01:18.8]} 42... Kf7 {[%clk 0:00:03.5]}
43. Ra6 {[%clk 0:01:15.2]} 43... Rb3 {[%clk 0:00:02.4]} 44. Kf4 {[%clk
0:01:10.7]} 44... Rb2 {[%clk 0:00:02.2]} 45. f3 {[%clk 0:01:10.7]} 45... Rh2
{[%clk 0:00:02.3]} 46. e4 {[%clk 0:01:09.1]} 46... Bb4 {[%clk 0:00:02.7]} 47. e5
{[%clk 0:01:08.2]} 47... Rf2 {[%clk 0:00:02.7]} 48. Ke4 {[%clk 0:01:04.9]} 48...
Re2+ {[%clk 0:00:02.5]} 49. Kf5 {[%clk 0:01:05.2]} 49... Rf2 {[%clk 0:00:03]}
50. Ra7+ {[%clk 0:01:05.4]} 50... Be7 {[%clk 0:00:03.6]} 51. f4 {[%clk 0:01:05]}
51... Rf1 {[%clk 0:00:03.2]} 52. d5 {[%clk 0:01:04.8]} 52... Kf8 {[%clk
0:00:03.9]} 53. d6 {[%clk 0:01:04.9]} 53... Bh4 {[%clk 0:00:03.7]} 54. h6 {[%clk
0:01:02.7]} 54... Bg3 {[%clk 0:00:03.5]} 55. Ra8+ {[%clk 0:01:02.8]} 55... Kf7
{[%clk 0:00:03.2]} 56. e6# {[%clk 0:01:03.1]} 1-0

[Event "Early-Titled-Tuesday-Blitz-October-10-2023"]
[Site "Chess.com"]
[Date "2023.10.10"]
[Round "4"]
[White "Eagle_2019"]
[Black "Orest_Vovk"]
[Result "1-0"]
[WhiteElo "2724"]
[BlackElo "2524"]
[TimeControl "180+1"]
[EndTime "8:38:07 PDT"]
[Termination "Eagle_2019 won by resignation"]

1. d4 {[%clk 0:03:00.9]} 1... h6 {[%clk 0:02:59.4]} 2. e4 {[%clk 0:03:00.3]}
2... g5 {[%clk 0:03:00]} 3. Bc4 {[%clk 0:02:58.2]} 3... Bg7 {[%clk 0:02:59.8]}
4. Ne2 {[%clk 0:02:57.6]} 4... c5 {[%clk 0:02:58.4]} 5. O-O {[%clk 0:02:56.2]}
5... cxd4 {[%clk 0:02:58.2]} 6. Nxd4 {[%clk 0:02:55.8]} 6... Nc6 {[%clk
0:02:54.2]} 7. Nf5 {[%clk 0:02:55.3]} 7... Be5 {[%clk 0:02:48.2]} 8. Nc3 {[%clk
0:02:50.6]} 8... Bxc3 {[%clk 0:02:36.8]} 9. bxc3 {[%clk 0:02:49.5]} 9... d6
{[%clk 0:02:37.2]} 10. Qd5 {[%clk 0:02:33.1]} 10... Rh7 {[%clk 0:02:10.2]} 11.
f4 {[%clk 0:02:23]} 11... Be6 {[%clk 0:01:46.1]} 12. Qd3 {[%clk 0:02:10.2]}
12... gxf4 {[%clk 0:01:38.7]} 13. Bxf4 {[%clk 0:02:07.8]} 13... Bxc4 {[%clk
0:01:10.3]} 14. Qxc4 {[%clk 0:02:05.4]} 14... Nf6 {[%clk 0:01:10.1]} 15. Rab1
{[%clk 0:01:49]} 15... Qd7 {[%clk 0:00:56.5]} 16. Bxh6 {[%clk 0:01:32.4]} 16...
Ne5 {[%clk 0:00:47.7]} 17. Qe2 {[%clk 0:01:20.7]} 17... O-O-O {[%clk 0:00:41.7]}
18. Bg5 {[%clk 0:01:06.7]} 18... Rg8 {[%clk 0:00:18]} 19. Bxf6 {[%clk
0:01:02.5]} 19... exf6 {[%clk 0:00:18.1]} 20. Qb5 {[%clk 0:01:01.5]} 20... Qxb5
{[%clk 0:00:14.4]} 21. Nxd6+ {[%clk 0:01:01.1]} 21... Kb8 {[%clk 0:00:12.2]} 22.
Rxb5 {[%clk 0:00:59.8]} 22... b6 {[%clk 0:00:12.1]} 23. Rxf6 {[%clk 0:00:59.2]}
23... Ng4 {[%clk 0:00:09.9]} 24. Rxf7 {[%clk 0:00:58.1]} 24... Rxf7 {[%clk
0:00:09]} 25. Nxf7 {[%clk 0:00:59]} 25... Ne3 {[%clk 0:00:09]} 26. Rg5 {[%clk
0:00:57.6]} 26... Re8 {[%clk 0:00:07]} 27. Nd6 {[%clk 0:00:54.7]} 27... Re6
{[%clk 0:00:05.9]} 28. Rg8+ {[%clk 0:00:51.5]} 28... Kc7 {[%clk 0:00:05.2]} 29.
Nb5+ {[%clk 0:00:52.1]} 29... Kb7 {[%clk 0:00:05.2]} 30. Rg7+ {[%clk 0:00:50.2]}
30... Kb8 {[%clk 0:00:05.3]} 31. Kf2 {[%clk 0:00:48.2]} 31... Nxc2 {[%clk
0:00:04.2]} 32. Kf3 {[%clk 0:00:41.4]} 32... Ne1+ {[%clk 0:00:03.3]} 33. Kf2
{[%clk 0:00:38.5]} 33... Nd3+ {[%clk 0:00:03.1]} 34. Ke3 {[%clk 0:00:37.5]}
34... Nc5 {[%clk 0:00:03.3]} 35. Rg4 {[%clk 0:00:36.5]} 35... a6 {[%clk
0:00:03.3]} 36. Nd4 {[%clk 0:00:35.2]} 36... Rh6 {[%clk 0:00:03.4]} 37. h4
{[%clk 0:00:34.3]} 37... Na4 {[%clk 0:00:03.7]} 38. Nf5 {[%clk 0:00:29.9]} 38...
Rh8 {[%clk 0:00:02.8]} 39. c4 {[%clk 0:00:29.5]} 39... Nb2 {[%clk 0:00:02.7]}
40. e5 {[%clk 0:00:28.1]} 40... b5 {[%clk 0:00:02]} 41. c5 {[%clk 0:00:26.1]}
41... Nc4+ {[%clk 0:00:01.9]} 42. Rxc4 {[%clk 0:00:21.7]} 42... Re8 {[%clk
0:00:02.8]} 43. Re4 {[%clk 0:00:20.8]} 1-0

[Event "Early-Titled-Tuesday-Blitz-October-10-2023"]
[Site "Chess.com"]
[Date "2023.10.10"]
[Round "4"]
[White "CarlosjPineror"]
[Black "invisible_s0ul"]
[Result "0-1"]
[WhiteElo "2489"]
[BlackElo "2309"]
[TimeControl "180+1"]
[EndTime "8:38:09 PDT"]
[Termination "invisible_s0ul won by resignation"]

1. e4 {[%clk 0:03:00.9]} 1... c5 {[%clk 0:02:58.2]} 2. Nf3 {[%clk 0:03:01.3]}
2... d6 {[%clk 0:02:56.2]} 3. d4 {[%clk 0:03:01.9]} 3... cxd4 {[%clk 0:02:57.1]}
4. Nxd4 {[%clk 0:03:02.3]} 4... Nf6 {[%clk 0:02:57.9]} 5. Nc3 {[%clk 0:03:02.8]}
5... a6 {[%clk 0:02:58.5]} 6. Bg5 {[%clk 0:03:03.2]} 6... e6 {[%clk 0:02:50]} 7.
f4 {[%clk 0:03:03.7]} 7... h6 {[%clk 0:02:50.2]} 8. Bh4 {[%clk 0:03:03.3]} 8...
Qb6 {[%clk 0:02:49]} 9. a3 {[%clk 0:02:54.5]} 9... Be7 {[%clk 0:02:47.3]} 10.
Bf2 {[%clk 0:02:54.6]} 10... Qc7 {[%clk 0:02:46.9]} 11. Qf3 {[%clk 0:02:43.8]}
11... Nc6 {[%clk 0:02:21.7]} 12. O-O-O {[%clk 0:02:40]} 12... Bd7 {[%clk
0:02:15.5]} 13. Bd3 {[%clk 0:02:10.2]} 13... Rc8 {[%clk 0:02:04]} 14. h3 {[%clk
0:02:06.5]} 14... b5 {[%clk 0:02:04.3]} 15. g4 {[%clk 0:02:04.8]} 15... b4
{[%clk 0:02:02.3]} 16. axb4 {[%clk 0:02:04.2]} 16... Nxb4 {[%clk 0:02:03.2]} 17.
Rhe1 {[%clk 0:01:56.3]} 17... Qa5 {[%clk 0:01:57]} 18. Nb3 {[%clk 0:01:51.8]}
18... Na2+ {[%clk 0:01:48.9]} 19. Kd2 {[%clk 0:01:51]} 19... Qb4 {[%clk
0:01:44.1]} 20. Bxa6 {[%clk 0:01:46.6]} 20... Ra8 {[%clk 0:00:37.4]} 21. Bd3
{[%clk 0:01:41.1]} 21... d5 {[%clk 0:00:37.8]} 22. e5 {[%clk 0:01:37]} 22... Nh7
{[%clk 0:00:21.3]} 23. Bd4 {[%clk 0:01:36.3]} 23... Ba4 {[%clk 0:00:16.5]} 24.
Ke3 {[%clk 0:01:35.7]} 24... Bxb3 {[%clk 0:00:16]} 25. cxb3 {[%clk 0:01:36.6]}
25... Qxb3 {[%clk 0:00:16.3]} 26. f5 {[%clk 0:01:35.2]} 26... Bg5+ {[%clk
0:00:12.2]} 27. Kf2 {[%clk 0:01:34.2]} 27... Bh4+ {[%clk 0:00:10.1]} 28. Kg1
{[%clk 0:01:34.9]} 28... Bxe1 {[%clk 0:00:10]} 29. Rxe1 {[%clk 0:01:35.8]} 29...
Ng5 {[%clk 0:00:08.6]} 30. Qg2 {[%clk 0:01:34.1]} 30... O-O {[%clk 0:00:07.8]}
31. h4 {[%clk 0:01:33.4]} 31... Nh7 {[%clk 0:00:07.6]} 32. g5 {[%clk 0:01:30.4]}
32... hxg5 {[%clk 0:00:08.5]} 33. hxg5 {[%clk 0:01:29.3]} 33... Nxc3 {[%clk
0:00:09.1]} 34. bxc3 {[%clk 0:01:27.9]} 34... exf5 {[%clk 0:00:09.6]} 35. Bxf5
{[%clk 0:01:26.6]} 35... g6 {[%clk 0:00:09.7]} 36. Bd3 {[%clk 0:01:19.9]} 36...
Ra2 {[%clk 0:00:09.4]} 37. Qg3 {[%clk 0:01:19.3]} 37... Qb2 {[%clk 0:00:08.7]}
38. Re2 {[%clk 0:01:18.9]} 38... Qa1+ {[%clk 0:00:07.8]} 39. Kf2 {[%clk
0:01:17.2]} 39... Rxe2+ {[%clk 0:00:08.3]} 40. Bxe2 {[%clk 0:01:18.1]} 40... Qc1
{[%clk 0:00:08.7]} 41. Qe3 {[%clk 0:01:14.5]} 41... Qxe3+ {[%clk 0:00:08.5]} 42.
Bxe3 {[%clk 0:01:15.4]} 42... Rc8 {[%clk 0:00:08.5]} 43. Bd2 {[%clk 0:01:14.6]}
43... Kf8 {[%clk 0:00:07.6]} 44. Bf3 {[%clk 0:01:13.6]} 44... Rc5 {[%clk
0:00:06.9]} 45. Ke2 {[%clk 0:01:12.9]} 45... Ke7 {[%clk 0:00:06.8]} 46. Kd3
{[%clk 0:01:12.9]} 46... Ke6 {[%clk 0:00:07.2]} 47. Bf4 {[%clk 0:01:12.6]} 47...
Rc4 {[%clk 0:00:07.4]} 48. Bg4+ {[%clk 0:01:11.1]} 48... Ke7 {[%clk 0:00:08]}
49. Ke3 {[%clk 0:01:10.7]} 49... Rxc3+ {[%clk 0:00:08.1]} 50. Kd4 {[%clk
0:01:11.2]} 50... Rc4+ {[%clk 0:00:08.5]} 51. Ke3 {[%clk 0:01:12]} 51... Re4+
{[%clk 0:00:08.2]} 52. Kf3 {[%clk 0:01:12.2]} 52... Re1 {[%clk 0:00:06.9]} 53.
Bh3 {[%clk 0:01:09.7]} 53... Ra1 {[%clk 0:00:07.1]} 54. Be3 {[%clk 0:01:03.7]}
54... Ra3 {[%clk 0:00:07.1]} 55. Kf4 {[%clk 0:01:03.4]} 55... Ra4+ {[%clk
0:00:07.1]} 56. Kf3 {[%clk 0:01:04.1]} 56... Re4 {[%clk 0:00:07.1]} 57. Bc5+
{[%clk 0:00:59.5]} 57... Ke8 {[%clk 0:00:06.5]} 58. Bd6 {[%clk 0:00:58.8]} 58...
Nxg5+ {[%clk 0:00:06.3]} 59. Kg3 {[%clk 0:00:59.2]} 59... Nxh3 {[%clk
0:00:05.6]} 60. Kxh3 {[%clk 0:00:59.8]} 60... Rc4 {[%clk 0:00:05.8]} 0-1

[Event "Early-Titled-Tuesday-Blitz-October-10-2023"]
[Site "Chess.com"]
[Date "2023.10.10"]
[Round "4"]
[White "DvaHrasta"]
[Black "Darko-Dimitrijevic"]
[Result "1-0"]
[WhiteElo "2451"]
[BlackElo "2183"]
[TimeControl "180+1"]
[EndTime "8:38:09 PDT"]
[Termination "DvaHrasta won on time"]

1. c4 {[%clk 0:03:00.9]} 1... e5 {[%clk 0:02:57.3]} 2. g3 {[%clk 0:03:00.9]}
2... Bc5 {[%clk 0:02:53.4]} 3. Bg2 {[%clk 0:02:59.9]} 3... d6 {[%clk 0:02:52.2]}
4. Nc3 {[%clk 0:02:58.6]} 4... Nc6 {[%clk 0:02:49.8]} 5. e3 {[%clk 0:02:57.4]}
5... a5 {[%clk 0:02:47.5]} 6. Nf3 {[%clk 0:02:55.1]} 6... Nf6 {[%clk 0:02:44.4]}
7. d4 {[%clk 0:02:53.2]} 7... Bb4 {[%clk 0:02:39.3]} 8. O-O {[%clk 0:02:50.6]}
8... O-O {[%clk 0:02:37.9]} 9. Nd5 {[%clk 0:02:49.4]} 9... a4 {[%clk 0:02:11.1]}
10. a3 {[%clk 0:02:38]} 10... Ba5 {[%clk 0:02:07.1]} 11. Nxf6+ {[%clk
0:02:37.5]} 11... Qxf6 {[%clk 0:02:05.7]} 12. d5 {[%clk 0:02:29.3]} 12... Ne7
{[%clk 0:02:03.3]} 13. e4 {[%clk 0:02:18.2]} 13... Bg4 {[%clk 0:02:02.4]} 14. h3
{[%clk 0:02:15.3]} 14... Bxf3 {[%clk 0:02:01.1]} 15. Bxf3 {[%clk 0:02:15]} 15...
Bb6 {[%clk 0:02:00]} 16. Kg2 {[%clk 0:02:11.8]} 16... g6 {[%clk 0:01:56.8]} 17.
Be2 {[%clk 0:02:09.5]} 17... Qg7 {[%clk 0:01:50.2]} 18. Bd3 {[%clk 0:01:56.7]}
18... f5 {[%clk 0:01:47.7]} 19. f3 {[%clk 0:01:50.4]} 19... fxe4 {[%clk
0:01:40.9]} 20. Bxe4 {[%clk 0:01:47.1]} 20... Nf5 {[%clk 0:01:33.2]} 21. Qd3
{[%clk 0:01:33.9]} 21... Bd4 {[%clk 0:01:17.9]} 22. Bd2 {[%clk 0:01:32.5]} 22...
Qd7 {[%clk 0:01:08.8]} 23. Rab1 {[%clk 0:01:28.4]} 23... b6 {[%clk 0:01:05.3]}
24. Rh1 {[%clk 0:01:22.8]} 24... Rf7 {[%clk 0:01:03.5]} 25. h4 {[%clk
0:01:22.7]} 25... h5 {[%clk 0:00:57.3]} 26. Bg5 {[%clk 0:01:13.6]} 26... Raf8
{[%clk 0:00:52.8]} 27. Rhe1 {[%clk 0:01:09.5]} 27... Bc5 {[%clk 0:00:52.3]} 28.
Rbd1 {[%clk 0:00:58.4]} 28... Kg7 {[%clk 0:00:51.9]} 29. Rd2 {[%clk 0:00:55.9]}
29... Qe8 {[%clk 0:00:35.5]} 30. Rh1 {[%clk 0:00:51.5]} 30... Rh8 {[%clk
0:00:29.6]} 31. Re2 {[%clk 0:00:50.3]} 31... Qd7 {[%clk 0:00:28.5]} 32. Qd1
{[%clk 0:00:47]} 32... Nd4 {[%clk 0:00:27.7]} 33. Ree1 {[%clk 0:00:39.8]} 33...
Rhf8 {[%clk 0:00:26.6]} 34. Qd3 {[%clk 0:00:39.1]} 34... Nxf3 {[%clk 0:00:24.4]}
35. Ref1 {[%clk 0:00:30.2]} 35... Nxg5 {[%clk 0:00:22.4]} 36. hxg5 {[%clk
0:00:12.1]} 36... Rxf1 {[%clk 0:00:18.2]} 37. Rxf1 {[%clk 0:00:11.4]} 37... h4
{[%clk 0:00:06]} 38. Rxf8 {[%clk 0:00:08.5]} 38... Kxf8 {[%clk 0:00:05.6]} 39.
Bxg6 {[%clk 0:00:08.5]} 1-0

[Event "Early-Titled-Tuesday-Blitz-October-10-2023"]
[Site "Chess.com"]
[Date "2023.10.10"]
[Round "4"]
[White "Sergey85Rodchenkov"]
[Black "hawes33"]
[Result "1-0"]
[WhiteElo "2499"]
[BlackElo "2269"]
[TimeControl "180+1"]
[EndTime "8:38:09 PDT"]
[Termination "Sergey85Rodchenkov won by resignation"]

1. e4 {[%clk 0:02:58.4]} 1... c5 {[%clk 0:02:58.5]} 2. Nf3 {[%clk 0:02:58.9]}
2... d6 {[%clk 0:02:56.8]} 3. d4 {[%clk 0:02:59.5]} 3... cxd4 {[%clk 0:02:56.5]}
4. Nxd4 {[%clk 0:03:00.4]} 4... Nf6 {[%clk 0:02:56.3]} 5. Nc3 {[%clk 0:03:01.1]}
5... a6 {[%clk 0:02:55.6]} 6. Be3 {[%clk 0:03:01.5]} 6... b5 {[%clk 0:02:55.8]}
7. a4 {[%clk 0:02:58.9]} 7... b4 {[%clk 0:02:53.2]} 8. Nd5 {[%clk 0:02:59.3]}
8... Nxd5 {[%clk 0:02:52.7]} 9. exd5 {[%clk 0:02:59.2]} 9... Bb7 {[%clk
0:02:53.1]} 10. Bc4 {[%clk 0:02:57.2]} 10... g6 {[%clk 0:02:53.3]} 11. a5 {[%clk
0:02:45]} 11... Bg7 {[%clk 0:02:52.3]} 12. Ra4 {[%clk 0:02:43.7]} 12... Qc7
{[%clk 0:02:46.2]} 13. b3 {[%clk 0:02:37.6]} 13... O-O {[%clk 0:02:43]} 14. O-O
{[%clk 0:02:37.4]} 14... Nd7 {[%clk 0:02:36.8]} 15. Rxb4 {[%clk 0:02:31]} 15...
Rab8 {[%clk 0:02:31.5]} 16. Ra4 {[%clk 0:02:27.2]} 16... Nc5 {[%clk 0:02:28.7]}
17. Ra2 {[%clk 0:02:24.7]} 17... Ne4 {[%clk 0:02:16.7]} 18. Qd3 {[%clk
0:02:22.2]} 18... Bxd5 {[%clk 0:01:50.8]} 19. Bxd5 {[%clk 0:02:05.8]} 19... Nc3
{[%clk 0:01:45]} 20. Ne6 {[%clk 0:01:24.6]} 20... fxe6 {[%clk 0:01:37.8]} 21.
Bxe6+ {[%clk 0:01:25.5]} 21... Kh8 {[%clk 0:01:37.9]} 22. Raa1 {[%clk
0:01:26.2]} 22... Nb5 {[%clk 0:01:32.1]} 23. c4 {[%clk 0:01:07]} 23... Nc3
{[%clk 0:00:46]} 24. Rfc1 {[%clk 0:00:57.2]} 24... Rxb3 {[%clk 0:00:45.1]} 25.
c5 {[%clk 0:00:41.5]} 25... d5 {[%clk 0:00:34.2]} 26. Bxd5 {[%clk 0:00:18.8]}
26... Rd8 {[%clk 0:00:33.1]} 27. Qc4 {[%clk 0:00:13.2]} 27... Rxd5 {[%clk
0:00:26.4]} 28. Qxb3 {[%clk 0:00:11.5]} 28... Ne2+ {[%clk 0:00:26.5]} 29. Kh1
{[%clk 0:00:10.5]} 29... Nxc1 {[%clk 0:00:26.5]} 30. Rxc1 {[%clk 0:00:04.3]}
30... e6 {[%clk 0:00:26.2]} 31. Qb6 {[%clk 0:00:04.4]} 31... Be5 {[%clk
0:00:23.1]} 32. c6 {[%clk 0:00:03]} 32... Bxh2 {[%clk 0:00:21.6]} 33. Qxc7
{[%clk 0:00:03]} 33... Bxc7 {[%clk 0:00:22.1]} 34. Bb6 {[%clk 0:00:03.9]} 34...
Rh5+ {[%clk 0:00:21.7]} 35. Kg1 {[%clk 0:00:03.9]} 35... Bf4 {[%clk 0:00:21.8]}
36. c7 {[%clk 0:00:03.7]} 36... Bxc7 {[%clk 0:00:21.6]} 37. Rxc7 {[%clk
0:00:03.5]} 37... h6 {[%clk 0:00:20.3]} 38. Ra7 {[%clk 0:00:03.9]} 38... Rxa5
{[%clk 0:00:19.9]} 39. Bxa5 {[%clk 0:00:03.8]} 39... e5 {[%clk 0:00:19.3]} 40.
Rxa6 {[%clk 0:00:04.7]} 40... e4 {[%clk 0:00:20.2]} 41. Bc3+ {[%clk 0:00:05]}
41... Kg8 {[%clk 0:00:19.8]} 42. Bd2 {[%clk 0:00:05.9]} 42... Kf7 {[%clk
0:00:19.2]} 43. Be3 {[%clk 0:00:06.8]} 43... g5 {[%clk 0:00:19.9]} 44. g4 {[%clk
0:00:07.2]} 44... h5 {[%clk 0:00:20.2]} 45. gxh5 {[%clk 0:00:07.4]} 45... g4
{[%clk 0:00:20.4]} 46. Kg2 {[%clk 0:00:08]} 46... g3 {[%clk 0:00:20.9]} 47. Kxg3
{[%clk 0:00:08.9]} 47... Kg7 {[%clk 0:00:20.8]} 48. Kf4 {[%clk 0:00:09.8]} 48...
Kh7 {[%clk 0:00:21.7]} 49. Kxe4 {[%clk 0:00:10.7]} 49... Kg7 {[%clk 0:00:22.5]}
50. f4 {[%clk 0:00:11.6]} 50... Kh7 {[%clk 0:00:23.4]} 51. f5 {[%clk 0:00:12.5]}
1-0

[Event "Early-Titled-Tuesday-Blitz-October-10-2023"]
[Site "Chess.com"]
[Date "2023.10.10"]
[Round "4"]
[White "abelmat"]
[Black "LamaChampetre"]
[Result "0-1"]
[WhiteElo "1935"]
[BlackElo "2250"]
[TimeControl "180+1"]
[EndTime "8:38:09 PDT"]
[Termination "LamaChampetre won on time"]

1. d4 {[%clk 0:02:26.8]} 1... Nf6 {[%clk 0:02:57.8]} 2. c4 {[%clk 0:02:26.3]}
2... g6 {[%clk 0:02:58.3]} 3. Nc3 {[%clk 0:02:25.9]} 3... d5 {[%clk 0:02:59]} 4.
Nf3 {[%clk 0:02:25.1]} 4... Bg7 {[%clk 0:02:58.9]} 5. g3 {[%clk 0:02:25.3]} 5...
dxc4 {[%clk 0:02:52.6]} 6. Qa4+ {[%clk 0:02:20.2]} 6... Nfd7 {[%clk 0:02:51.3]}
7. Qxc4 {[%clk 0:02:19.7]} 7... Nc6 {[%clk 0:02:50.3]} 8. Bg2 {[%clk 0:02:16.9]}
8... Nb6 {[%clk 0:02:50.4]} 9. Qd3 {[%clk 0:02:15.3]} 9... Nxd4 {[%clk
0:02:38.2]} 10. O-O {[%clk 0:02:05.7]} 10... Nxf3+ {[%clk 0:02:35]} 11. Qxf3
{[%clk 0:02:05.3]} 11... O-O {[%clk 0:02:33.2]} 12. Rd1 {[%clk 0:02:05.1]} 12...
Qe8 {[%clk 0:02:31.8]} 13. Bf4 {[%clk 0:02:04.1]} 13... c6 {[%clk 0:02:29.4]}
14. Bc7 {[%clk 0:02:01.4]} 14... Be6 {[%clk 0:02:16.2]} 15. h4 {[%clk
0:01:56.4]} 15... Nd5 {[%clk 0:02:12.4]} 16. Bf4 {[%clk 0:01:40.5]} 16... Nxf4
{[%clk 0:02:08.9]} 17. Qxf4 {[%clk 0:01:41.4]} 17... Qb8 {[%clk 0:02:01.9]} 18.
Qb4 {[%clk 0:01:37.4]} 18... Re8 {[%clk 0:01:59.6]} 19. Ne4 {[%clk 0:01:32.6]}
19... Bd5 {[%clk 0:01:56.1]} 20. Rd2 {[%clk 0:01:18.9]} 20... Qe5 {[%clk
0:01:52.4]} 21. Rad1 {[%clk 0:01:15.4]} 21... b6 {[%clk 0:01:48.6]} 22. Rxd5
{[%clk 0:00:54.8]} 22... cxd5 {[%clk 0:01:45.2]} 23. Rxd5 {[%clk 0:00:53.5]}
23... Qxb2 {[%clk 0:01:36.9]} 24. Qc4 {[%clk 0:00:34.3]} 24... Rac8 {[%clk
0:01:34.4]} 25. Qa6 {[%clk 0:00:33.5]} 25... Rc7 {[%clk 0:01:08.6]} 26. Ng5
{[%clk 0:00:27.5]} 26... h6 {[%clk 0:00:53]} 27. Ne4 {[%clk 0:00:21.1]} 27...
Rec8 {[%clk 0:00:40.8]} 28. h5 {[%clk 0:00:20.3]} 28... g5 {[%clk 0:00:39.3]}
29. Bf3 {[%clk 0:00:17.6]} 29... g4 {[%clk 0:00:38.5]} 30. Bxg4 {[%clk
0:00:15.3]} 30... Qb1+ {[%clk 0:00:38.7]} 31. Kg2 {[%clk 0:00:12.8]} 31... Qxe4+
{[%clk 0:00:38.7]} 32. Bf3 {[%clk 0:00:13.7]} 32... Qe6 {[%clk 0:00:37.1]} 33.
Rd3 {[%clk 0:00:12.6]} 33... Rc5 {[%clk 0:00:35.4]} 34. Re3 {[%clk 0:00:12]}
34... Qf6 {[%clk 0:00:33.5]} 35. Qxa7 {[%clk 0:00:11.7]} 35... Rc2 {[%clk
0:00:32]} 36. Rxe7 {[%clk 0:00:10.8]} 36... Rf8 {[%clk 0:00:30.6]} 37. Rb7
{[%clk 0:00:09.7]} 37... Rb2 {[%clk 0:00:27.3]} 38. a4 {[%clk 0:00:09]} 38...
Qd4 {[%clk 0:00:24.8]} 39. e3 {[%clk 0:00:07.8]} 39... Qxe3 {[%clk 0:00:23.4]}
40. Bg4 {[%clk 0:00:02.1]} 40... Qxf2+ {[%clk 0:00:23.3]} 0-1